bitfinex-derivatives/quotes_BTCF0:USTF0_20251220
["timestamp","ask_amount","ask_price","bid_price","bid_amount"]
[1766266884707,0.02515556,88349.0,88333.0,0.02832]
[1766266884898,0.0113234,88352.0,88333.0,0.02832]
[1766266885095,0.02515567,88351.0,88333.0,0.02832]
[1766266885295,0.02515567,88350.0,88333.0,0.02832]
[1766266885497,0.02515567,88349.0,88333.0,0.02832]
[1766266885697,0.0113234,88352.0,88333.0,0.02832]
[1766266885898,0.02515582,88351.0,88333.0,0.02832]
[1766266886098,0.02515582,88350.0,88333.0,0.02832]
[1766266886307,0.02515582,88349.0,88333.0,0.02832]
[1766266886506,0.0113234,88352.0,88333.0,0.02832]
[1766266886705,0.02515601,88351.0,88333.0,0.02832]
[1766266886904,0.02515601,88350.0,88333.0,0.02832]
[1766266887203,0.02515601,88349.0,88333.0,0.02832]
[1766266887400,0.0113234,88352.0,88333.0,0.02832]
[1766266887594,0.02515626,88351.0,88333.0,0.02832]
[1766266887794,0.02515626,88350.0,88333.0,0.02832]
[1766266888007,0.02515626,88349.0,88333.0,0.02832]
[1766266888307,0.0113234,88352.0,88333.0,0.02832]
[1766266888510,0.02515656,88351.0,88333.0,0.02832]
[1766266888708,0.02515656,88350.0,88333.0,0.02832]
[1766266888907,0.02515656,88349.0,88333.0,0.02832]
[1766266889107,0.0113234,88352.0,88333.0,0.02832]
[1766266889307,0.02515656,88351.0,88333.0,0.02832]
[1766266889508,0.02515656,88350.0,88333.0,0.02832]
[1766266889711,0.02515656,88349.0,88333.0,0.02832]
[1766266890009,0.0113234,88352.0,88333.0,0.02832]
[1766266890210,0.02515689,88351.0,88333.0,0.02832]
[1766266890404,0.02515689,88350.0,88333.0,0.02832]
[1766266890605,0.02515689,88349.0,88333.0,0.02832]
[1766266890805,0.0113234,88352.0,88333.0,0.02832]
[1766266891021,0.02518261,88351.0,88333.0,0.02832]
[1766266891206,0.02518261,88350.0,88333.0,0.02832]
[1766266891408,0.02518261,88349.0,88333.0,0.02832]
[1766266891709,0.0113234,88352.0,88333.0,0.02832]
[1766266891908,0.02518291,88351.0,88333.0,0.02832]
[1766266892209,0.02518291,88350.0,88333.0,0.02832]
[1766266892416,0.02518291,88349.0,88333.0,0.02832]
[1766266892616,0.02832,88353.0,88333.0,0.02832]
[1766266892915,0.0113236,88351.0,88333.0,0.02832]
[1766266893214,0.02518332,88350.0,88333.0,0.02832]
[1766266893409,0.02518332,88349.0,88333.0,0.02832]
[1766266893609,0.0113236,88351.0,88333.0,0.02832]
[1766266893809,0.02518358,88350.0,88333.0,0.02832]
[1766266894010,0.02518358,88349.0,88333.0,0.02832]
[1766266894309,0.02518358,88348.0,88333.0,0.02832]
[1766266894512,0.0113236,88351.0,88333.0,0.02832]
[1766266894714,0.02518382,88350.0,88333.0,0.02832]
[1766266895017,0.02518382,88349.0,88333.0,0.02832]
[1766266895215,0.02518382,88348.0,88333.0,0.02832]
[1766266895415,0.0113236,88351.0,88333.0,0.02832]
[1766266895611,0.02518407,88350.0,88333.0,0.02832]
[1766266895811,0.02518407,88349.0,88333.0,0.02832]
[1766266896013,0.02518407,88348.0,88333.0,0.02832]
[1766266896214,0.0113236,88351.0,88333.0,0.02832]
[1766266896415,0.02518432,88350.0,88333.0,0.02832]
[1766266896616,0.02518432,88349.0,88333.0,0.02832]
[1766266896815,0.02518432,88348.0,88333.0,0.02832]
[1766266897016,0.0113236,88351.0,88333.0,0.02832]
[1766266897216,0.02518432,88350.0,88333.0,0.02832]
[1766266897413,0.02518432,88349.0,88333.0,0.02832]
[1766266897612,0.02518432,88348.0,88333.0,0.02832]
[1766266897912,0.0113236,88351.0,88333.0,0.02832]
[1766266898113,0.02518468,88350.0,88333.0,0.02832]
[1766266898313,0.02518468,88349.0,88333.0,0.02832]
[1766266898611,0.02518468,88348.0,88333.0,0.02832]
[1766266898817,0.0113236,88351.0,88333.0,0.02832]
[1766266899019,0.0251847,88350.0,88333.0,0.02832]
[1766266899211,0.0251847,88349.0,88333.0,0.02832]
[1766266899411,0.0251847,88348.0,88333.0,0.02832]
[1766266899612,0.0113236,88351.0,88333.0,0.02832]
[1766266899915,0.02518464,88350.0,88333.0,0.02832]
[1766266900116,0.02518464,88349.0,88333.0,0.02832]
[1766266900316,0.02518464,88348.0,88333.0,0.02832]
[1766266900518,0.0113236,88351.0,88333.0,0.02832]
[1766266900717,0.02518475,88350.0,88333.0,0.02832]
[1766266901015,0.02518475,88349.0,88333.0,0.02832]
[1766266901215,0.02518475,88348.0,88333.0,0.02832]
[1766266901415,0.0113236,88351.0,88333.0,0.02832]
[1766266901613,0.02518477,88350.0,88333.0,0.02832]
[1766266901819,0.02518477,88349.0,88333.0,0.02832]
[1766266902019,0.02518477,88348.0,88333.0,0.02832]
[1766266902218,0.0113236,88351.0,88333.0,0.02832]
[1766266902420,0.02518476,88350.0,88333.0,0.02832]
[1766266902718,0.02518476,88349.0,88333.0,0.02832]
[1766266902910,0.02518476,88348.0,88333.0,0.02832]
[1766266903110,0.0113236,88351.0,88333.0,0.02832]
[1766266903310,0.02518476,88350.0,88333.0,0.02832]
[1766266903610,0.02518476,88349.0,88333.0,0.02832]
[1766266903811,0.02518476,88348.0,88333.0,0.02832]
[1766266904008,0.0113236,88351.0,88333.0,0.02832]
[1766266904209,0.02518472,88350.0,88333.0,0.02832]
[1766266904410,0.02518472,88349.0,88333.0,0.02832]
[1766266904710,0.02518472,88348.0,88333.0,0.02832]
[1766266904909,0.0113236,88351.0,88333.0,0.02832]
[1766266905210,0.02518472,88350.0,88333.0,0.02832]
[1766266905410,0.02518472,88349.0,88333.0,0.02832]
[1766266905720,0.02518472,88348.0,88333.0,0.02832]
[1766266905920,0.0113236,88351.0,88333.0,0.02832]
[1766266906217,0.0251847,88350.0,88333.0,0.02832]
[1766266906417,0.0251847,88349.0,88333.0,0.02832]
[1766266906623,0.0251847,88348.0,88333.0,0.02832]
[1766266906819,0.0113236,88351.0,88333.0,0.02832]
[1766266907020,0.02518468,88350.0,88333.0,0.02832]
[1766266907219,0.02518468,88349.0,88333.0,0.02832]
[1766266907413,0.02518468,88348.0,88333.0,0.02832]
[1766266907611,0.0113236,88351.0,88333.0,0.02832]
[1766266907814,0.02518467,88350.0,88333.0,0.02832]
[1766266908014,0.02518467,88349.0,88333.0,0.02832]
[1766266908214,0.02518467,88348.0,88333.0,0.02832]
[1766266908417,0.0113236,88351.0,88333.0,0.02832]
[1766266908622,0.02518467,88350.0,88333.0,0.02832]
[1766266908814,0.02518467,88349.0,88333.0,0.02832]
[1766266909111,0.02518467,88348.0,88333.0,0.02832]
[1766266909311,0.0113236,88351.0,88333.0,0.02832]
[1766266909512,0.02518469,88350.0,88333.0,0.02832]
[1766266909713,0.02518469,88349.0,88333.0,0.02832]
[1766266909915,0.02518469,88348.0,88333.0,0.02832]
[1766266910118,0.0113236,88351.0,88333.0,0.02832]
[1766266910408,0.02518469,88350.0,88333.0,0.02832]
[1766266910608,0.02518469,88349.0,88333.0,0.02832]
[1766266910818,0.0113236,88351.0,88333.0,0.02832]
[1766266910819,0.02518469,88348.0,88333.0,0.02832]
[1766266911018,0.0113236,88351.0,88333.0,0.02832]
[1766266911220,0.02518471,88350.0,88333.0,0.02832]
[1766266911420,0.02518471,88349.0,88333.0,0.02832]
[1766266911610,0.02518471,88348.0,88333.0,0.02832]
[1766266911809,0.0113236,88351.0,88333.0,0.02832]
[1766266912121,0.02518473,88350.0,88333.0,0.02832]
[1766266912319,0.02518473,88349.0,88333.0,0.02832]
[1766266912519,0.02518473,88348.0,88333.0,0.02832]
[1766266912722,0.0113236,88351.0,88333.0,0.02832]
[1766266913021,0.02518475,88350.0,88333.0,0.02832]
[1766266913222,0.02518475,88349.0,88333.0,0.02832]
[1766266913423,0.02518475,88348.0,88333.0,0.02832]
[1766266913620,0.0113236,88351.0,88333.0,0.02832]
[1766266913920,0.0251848,88350.0,88333.0,0.02832]
[1766266914119,0.0251848,88349.0,88333.0,0.02832]
[1766266914421,0.0251848,88348.0,88333.0,0.02832]
[1766266914624,0.0113236,88351.0,88333.0,0.02832]
[1766266914822,0.02518479,88350.0,88333.0,0.02832]
[1766266915123,0.02518479,88349.0,88333.0,0.02832]
[1766266915420,0.02518479,88348.0,88333.0,0.02832]
[1766266915622,0.0113236,88351.0,88333.0,0.02832]
[1766266915807,0.02518481,88350.0,88333.0,0.02832]
[1766266916009,0.02518481,88349.0,88333.0,0.02832]
[1766266916214,0.02518481,88348.0,88333.0,0.02832]
[1766266916411,0.0113236,88351.0,88333.0,0.02832]
[1766266916622,0.02518483,88350.0,88333.0,0.02832]
[1766266916821,0.02518483,88349.0,88333.0,0.0396458]
[1766266917025,0.02832,88353.0,88333.0,0.0396458]
[1766266917221,0.02518472,88352.0,88333.0,0.0396458]
[1766266917427,0.02518472,88351.0,88333.0,0.0396458]
[1766266917619,0.02518472,88350.0,88333.0,0.0396458]
[1766266917922,0.02518472,88349.0,88333.0,0.0396458]
[1766266918124,0.02518472,88348.0,88333.0,0.0396458]
[1766266918324,0.02832,88353.0,88333.0,0.0396458]
[1766266918526,0.0251843,88352.0,88333.0,0.0396458]
[1766266918729,0.0251843,88351.0,88333.0,0.0396458]
[1766266918920,0.0251843,88350.0,88333.0,0.0396458]
[1766266919116,0.02832,88353.0,88333.0,0.0396458]
[1766266919117,0.0251843,88349.0,88333.0,0.0396458]
[1766266919426,0.0251843,88348.0,88334.0,0.02832]
[1766266919624,0.0113234,88352.0,88334.0,0.02832]
[1766266919828,0.02518413,88351.0,88334.0,0.02832]
[1766266920023,0.02518413,88350.0,88334.0,0.02832]
[1766266920226,0.02518413,88349.0,88334.0,0.02832]
[1766266920427,0.0113234,88352.0,88334.0,0.02832]
[1766266920724,0.02518412,88351.0,88334.0,0.02832]
[1766266920929,0.02518412,88350.0,88334.0,0.02832]
[1766266921126,0.02518412,88349.0,88334.0,0.02832]
[1766266921325,0.0113234,88352.0,88334.0,0.02832]
[1766266921627,0.02524089,88351.0,88334.0,0.02832]
[1766266921818,0.02524089,88350.0,88334.0,0.02832]
[1766266922116,0.02524089,88349.0,88334.0,0.02832]
[1766266922319,0.0113234,88352.0,88334.0,0.02832]
[1766266922616,0.02524078,88351.0,88334.0,0.02832]
[1766266922916,0.02524078,88350.0,88334.0,0.02832]
[1766266923112,0.02524078,88349.0,88334.0,0.02832]
[1766266923327,0.0113234,88352.0,88334.0,0.02832]
[1766266923526,0.02524041,88351.0,88334.0,0.02832]
[1766266923719,0.02524041,88350.0,88334.0,0.02832]
[1766266924023,0.02524041,88349.0,88334.0,0.02832]
[1766266924323,0.0113234,88352.0,88334.0,0.02832]
[1766266924516,0.02523997,88351.0,88334.0,0.02832]
[1766266924711,0.02523997,88350.0,88334.0,0.02832]
[1766266924918,0.02523997,88349.0,88334.0,0.02832]
[1766266925119,0.02524042,88348.0,88334.0,0.02832]
[1766266925419,0.0113234,88352.0,88334.0,0.02832]
[1766266925619,0.02524041,88351.0,88334.0,0.02832]
[1766266925828,0.0113234,88352.0,88334.0,0.02832]
[1766266925829,0.02524041,88350.0,88334.0,0.02832]
[1766266926017,0.02524041,88349.0,88334.0,0.02832]
[1766266926217,0.02524041,88348.0,88334.0,0.02832]
[1766266926418,0.0113234,88352.0,88334.0,0.02832]
[1766266926619,0.02524031,88351.0,88334.0,0.02832]
[1766266926921,0.02524031,88350.0,88334.0,0.02832]
[1766266927121,0.02524031,88349.0,88334.0,0.02832]
[1766266927428,0.02524031,88348.0,88334.0,0.02832]
[1766266927627,0.0113234,88352.0,88334.0,0.02832]
[1766266927828,0.02524042,88351.0,88334.0,0.02832]
[1766266928028,0.02524042,88350.0,88334.0,0.02832]
[1766266928324,0.02524042,88349.0,88334.0,0.02832]
[1766266928536,0.02524042,88348.0,88334.0,0.02832]
[1766266928729,0.0113234,88352.0,88334.0,0.02832]
[1766266928927,0.02524036,88351.0,88334.0,0.02832]
[1766266929117,0.02524036,88350.0,88334.0,0.02832]
[1766266929320,0.02524036,88349.0,88334.0,0.02832]
[1766266929525,0.02524036,88348.0,88334.0,0.02832]
[1766266929721,0.0113234,88352.0,88334.0,0.02832]
[1766266929928,0.02524044,88351.0,88334.0,0.02832]
[1766266930115,0.02524044,88350.0,88334.0,0.02832]
[1766266930319,0.02524044,88349.0,88334.0,0.02832]
[1766266930614,0.02524044,88348.0,88334.0,0.02832]
[1766266930819,0.0113234,88352.0,88334.0,0.02832]
[1766266931020,0.02524028,88351.0,88334.0,0.02832]
[1766266931331,0.02524028,88350.0,88334.0,0.02832]
[1766266931525,0.02524028,88349.0,88334.0,0.02832]
[1766266931727,0.02524028,88348.0,88334.0,0.02832]
[1766266931925,0.0113234,88352.0,88334.0,0.02832]
[1766266932127,0.02524005,88351.0,88334.0,0.02832]
[1766266932327,0.02524005,88350.0,88334.0,0.02832]
[1766266932528,0.02524005,88349.0,88334.0,0.02832]
[1766266932729,0.02524005,88348.0,88334.0,0.02832]
[1766266932929,0.0113234,88352.0,88334.0,0.02832]
[1766266933130,0.02523993,88351.0,88334.0,0.02832]
[1766266933331,0.02523993,88350.0,88334.0,0.02832]
[1766266933532,0.0113234,88352.0,88334.0,0.02832]
[1766266933533,0.02523993,88349.0,88334.0,0.02832]
[1766266933728,0.02523993,88348.0,88334.0,0.02832]
[1766266933929,0.0113234,88352.0,88334.0,0.02832]
[1766266934227,0.02523978,88351.0,88334.0,0.02832]
[1766266934432,0.0113234,88352.0,88334.0,0.02832]
[1766266934433,0.02523978,88350.0,88334.0,0.02832]
[1766266934634,0.02523978,88349.0,88334.0,0.02832]
[1766266934932,0.02523978,88348.0,88334.0,0.02832]
[1766266935133,0.0113234,88352.0,88334.0,0.02832]
[1766266935330,0.02523973,88351.0,88334.0,0.02832]
[1766266935526,0.02523973,88350.0,88334.0,0.02832]
[1766266935830,0.02523973,88349.0,88334.0,0.02832]
[1766266936040,0.02523973,88348.0,88334.0,0.02832]
[1766266936230,0.0113234,88352.0,88334.0,0.02832]
[1766266936432,0.02523962,88351.0,88334.0,0.02832]
[1766266936624,0.02523962,88350.0,88334.0,0.02832]
[1766266936825,0.02523962,88349.0,88334.0,0.02832]
[1766266937025,0.02523962,88348.0,88334.0,0.02832]
[1766266937235,0.0113234,88352.0,88334.0,0.02832]
[1766266937431,0.02523958,88351.0,88334.0,0.02832]
[1766266937630,0.02523958,88350.0,88334.0,0.02832]
[1766266937826,0.02523958,88349.0,88334.0,0.02832]
[1766266938030,0.02523958,88348.0,88334.0,0.02832]
[1766266938233,0.0113234,88352.0,88334.0,0.02832]
[1766266938432,0.02523953,88351.0,88334.0,0.02832]
[1766266938632,0.02523953,88350.0,88334.0,0.02832]
[1766266938836,0.02523953,88349.0,88335.0,0.02832]
[1766266939034,0.02523953,88348.0,88335.0,0.02832]
[1766266939336,0.0113234,88352.0,88335.0,0.02832]
[1766266939537,0.0252395,88351.0,88335.0,0.02832]
[1766266939734,0.0252395,88350.0,88335.0,0.02832]
[1766266940037,0.0252395,88349.0,88335.0,0.02832]
[1766266940232,0.0252395,88348.0,88335.0,0.02832]
[1766266940531,0.01071303,88352.0,88335.0,0.02832]
[1766266940730,0.02523943,88351.0,88335.0,0.02832]
[1766266940933,0.02523943,88350.0,88335.0,0.02832]
[1766266941132,0.01071303,88352.0,88335.0,0.02832]
[1766266941133,0.02523943,88349.0,88335.0,0.02832]
[1766266941334,0.02523943,88348.0,88335.0,0.02832]
[1766266941633,0.01071303,88352.0,88335.0,0.02832]
[1766266941837,0.02523941,88351.0,88335.0,0.02832]
[1766266942034,0.02523941,88350.0,88335.0,0.02832]
[1766266942235,0.02523941,88349.0,88335.0,0.02832]
[1766266942435,0.02523941,88348.0,88335.0,0.02832]
[1766266942637,0.01071303,88352.0,88335.0,0.02832]
[1766266942837,0.02523938,88351.0,88335.0,0.02832]
[1766266943038,0.02523938,88350.0,88335.0,0.02832]
[1766266943233,0.02523938,88349.0,88335.0,0.02832]
[1766266943433,0.02523938,88348.0,88335.0,0.02832]
[1766266943733,0.01071303,88352.0,88335.0,0.02832]
[1766266944041,0.02523932,88351.0,88335.0,0.02832]
[1766266944342,0.02523932,88350.0,88335.0,0.02832]
[1766266944536,0.03656312,88349.0,88335.0,0.02832]
[1766266944740,0.02523932,88348.0,88335.0,0.02832]
[1766266951342,0.02523932,88347.0,88335.0,0.02832]
[1766266951543,0.0396433,88353.0,88335.0,0.02832]
[1766266951744,0.02522775,88352.0,88335.0,0.02832]
[1766266952044,0.02522775,88351.0,88335.0,0.02832]
[1766266952239,0.02522775,88350.0,88335.0,0.02832]
[1766266952549,0.02522775,88349.0,88335.0,0.02832]
[1766266965948,0.05354775,88349.0,88335.0,0.02832]
[1766266966158,0.02522775,88348.0,88335.0,0.02832]
[1766266967868,0.02522775,88348.0,88330.0,0.00016973]
[1766266968067,0.02522775,88348.0,88335.0,0.02832]
[1766266968665,0.0113244,88344.0,88335.0,0.02832]
[1766266968860,0.02522775,88348.0,88335.0,0.02832]
[1766266968861,0.011324,88348.0,88335.0,0.02832]
[1766266969060,0.0113242,88346.0,88335.0,0.02832]
[1766266994485,0.0113242,88346.0,88330.0,0.22820224]
[1766266994782,0.0113242,88346.0,88333.0,0.02832]
[1766267007096,0.0113239,88348.0,88333.0,0.02832]
[1766267007299,0.02528174,88347.0,88333.0,0.02832]
[1766267007499,0.02528174,88346.0,88333.0,0.02832]
[1766267007700,0.0113239,88348.0,88333.0,0.02832]
[1766267007997,0.02528175,88347.0,88333.0,0.02832]
[1766267008198,0.0113239,88348.0,88333.0,0.02832]
[1766267008199,0.02528175,88346.0,88333.0,0.02832]
[1766267008399,0.0113239,88348.0,88333.0,0.02832]
[1766267008698,0.02528178,88347.0,88333.0,0.02832]
[1766267008898,0.02528178,88346.0,88333.0,0.02832]
[1766267009094,0.0113239,88348.0,88330.0,0.00016973]
[1766267009300,0.0113242,88346.0,88331.0,0.00188]
[1766267012900,0.0252964,88345.0,88331.0,0.00188]
[1766267013095,0.0113242,88346.0,88331.0,0.00188]
[1766267013297,0.0252964,88345.0,88331.0,0.00188]
[1766267013594,0.0113242,88346.0,88331.0,0.00188]
[1766267013791,0.0252964,88345.0,88331.0,0.00188]
[1766267014001,0.0113242,88346.0,88331.0,0.00188]
[1766267014201,0.0252964,88345.0,88331.0,0.00188]
[1766267014402,0.0113242,88346.0,88331.0,0.00188]
[1766267014700,0.02529641,88345.0,88331.0,0.00188]
[1766267014900,0.0113242,88346.0,88331.0,0.00188]
[1766267015096,0.0113242,88346.0,88321.0,1.44436]
[1766267015097,0.011325,88340.0,88313.0,0.09284938]
[1766267015295,0.4560632,88341.0,88313.0,0.00010439]
[1766267015296,0.2280316,88330.0,88313.0,0.00010439]
[1766267015490,0.0113256,88336.0,88314.0,0.02832]
[1766267015698,0.2393565,88341.0,88314.0,0.02832]
[1766267016006,0.02529272,88340.0,88314.0,0.02832]
[1766267016201,0.00016982,88336.0,88318.0,0.0001695]
[1766267025411,0.00016982,88336.0,88318.0,0.0114972]
[1766267043933,0.00016982,88336.0,88321.0,0.0113273]
[1766267050735,0.00016982,88336.0,88318.0,0.0001695]
[1766267051538,0.00016982,88336.0,88323.0,0.0113271]
[1766267051735,0.00016982,88336.0,88323.0,0.0396471]
[1766267056542,0.00016982,88336.0,88323.0,0.02832]
[1766267060542,0.00016982,88336.0,88324.0,0.011327]
[1766267064750,0.0128045,88344.0,88324.0,0.011327]
[1766267064940,0.0255138,88343.0,88324.0,0.011327]
[1766267065134,0.0255138,88342.0,88324.0,0.011327]
[1766267065340,0.0255138,88341.0,88324.0,0.011327]
[1766267065545,0.0255138,88340.0,88324.0,0.011327]
[1766267065747,0.0255138,88339.0,88324.0,0.011327]
[1766267065948,0.00016982,88341.0,88324.0,0.011327]
[1766267066249,0.02551376,88340.0,88324.0,0.011327]
[1766267066449,0.00551376,88339.0,88324.0,0.011327]
[1766267066651,0.00148,88344.0,88324.0,0.011327]
[1766267067150,0.02832,88346.0,88324.0,0.011327]
[1766267067748,0.00016982,88344.0,88324.0,0.011327]
[1766267067938,0.011324,88348.0,88327.0,0.0113265]
[1766267068141,0.02832,88347.0,88327.0,0.0113265]
[1766267068950,0.00016982,88346.0,88327.0,0.0113265]
[1766267076455,0.0113243,88345.0,88323.0,0.039647]
[1766267078564,0.02539635,88344.0,88323.0,0.039647]
[1766267078756,0.02539635,88343.0,88323.0,0.039647]
[1766267078948,0.02539635,88342.0,88323.0,0.039647]
[1766267079147,0.02539635,88341.0,88323.0,0.039647]
[1766267079446,0.02539635,88340.0,88323.0,0.039647]
[1766267079644,0.0113243,88345.0,88323.0,0.039647]
[1766267079850,0.02539633,88344.0,88323.0,0.039647]
[1766267080055,0.02539633,88343.0,88323.0,0.039647]
[1766267080254,0.02539633,88342.0,88323.0,0.039647]
[1766267080450,0.02539633,88341.0,88323.0,0.039647]
[1766267080650,0.02539633,88340.0,88323.0,0.039647]
[1766267080858,0.0113243,88345.0,88323.0,0.039647]
[1766267081156,0.02539633,88344.0,88323.0,0.039647]
[1766267081356,0.02539633,88343.0,88323.0,0.039647]
[1766267081557,0.02539633,88342.0,88323.0,0.039647]
[1766267081749,0.02539633,88341.0,88323.0,0.039647]
[1766267081950,0.02539633,88340.0,88323.0,0.039647]
[1766267082151,0.0113243,88345.0,88323.0,0.039647]
[1766267082354,0.0113246,88343.0,88323.0,0.039647]
[1766267082553,0.02539627,88342.0,88323.0,0.039647]
[1766267083362,0.02539627,88342.0,88323.0,0.02832]
[1766267086760,0.02539627,88342.0,88323.0,0.0396471]
[1766267098475,0.02539627,88341.0,88323.0,0.0396471]
[1766267098671,0.02539627,88340.0,88323.0,0.0396471]
[1766267098972,0.00016982,88346.0,88323.0,0.0396471]
[1766267099173,0.02539924,88345.0,88323.0,0.0396471]
[1766267099372,0.02539924,88344.0,88323.0,0.0396471]
[1766267099670,0.02539924,88343.0,88323.0,0.0396471]
[1766267099869,0.02539924,88342.0,88323.0,0.0396471]
[1766267100072,0.02539924,88341.0,88323.0,0.0396471]
[1766267100272,0.02539924,88340.0,88323.0,0.0396471]
[1766267100473,0.00016982,88346.0,88323.0,0.0396471]
[1766267100675,0.02539926,88345.0,88323.0,0.0396471]
[1766267100872,0.02539926,88344.0,88323.0,0.0396471]
[1766267101084,0.02539926,88343.0,88323.0,0.0396471]
[1766267101272,0.02539926,88342.0,88323.0,0.0396471]
[1766267101473,0.02539926,88341.0,88323.0,0.0396471]
[1766267101771,0.02539926,88340.0,88323.0,0.0396471]
[1766267101973,0.0113243,88345.0,88323.0,0.0396471]
[1766267102171,0.02540041,88344.0,88323.0,0.0396471]
[1766267102372,0.02540041,88343.0,88323.0,0.0396471]
[1766267102672,0.02540041,88342.0,88323.0,0.0396471]
[1766267102978,0.02540041,88341.0,88323.0,0.0396471]
[1766267103180,0.02540041,88340.0,88323.0,0.0396471]
[1766267103380,0.0113243,88345.0,88323.0,0.0396471]
[1766267103675,0.02540042,88344.0,88323.0,0.0396471]
[1766267103877,0.02540042,88343.0,88323.0,0.0396471]
[1766267104079,0.02540042,88342.0,88323.0,0.0396471]
[1766267104273,0.02540042,88341.0,88323.0,0.0396471]
[1766267104473,0.02540042,88340.0,88323.0,0.0396471]
[1766267104673,0.0113243,88345.0,88323.0,0.0396471]
[1766267104972,0.02540043,88344.0,88323.0,0.0396471]
[1766267105173,0.02540043,88343.0,88323.0,0.0396471]
[1766267105363,0.02540043,88342.0,88323.0,0.0396471]
[1766267105564,0.02540043,88341.0,88323.0,0.0396471]
[1766267105764,0.02540043,88340.0,88323.0,0.0396471]
[1766267105968,0.0113243,88345.0,88323.0,0.0396471]
[1766267106168,0.02540044,88344.0,88323.0,0.0396471]
[1766267106371,0.02540044,88343.0,88323.0,0.0396471]
[1766267106669,0.0113243,88345.0,88323.0,0.0396471]
[1766267106670,0.02540044,88342.0,88323.0,0.0396471]
[1766267106968,0.02540044,88341.0,88323.0,0.0396471]
[1766267107168,0.02540044,88340.0,88323.0,0.0396471]
[1766267107464,0.0113243,88345.0,88323.0,0.0396471]
[1766267107668,0.02540044,88344.0,88323.0,0.0396471]
[1766267107863,0.02540044,88343.0,88323.0,0.0396471]
[1766267108080,0.02540044,88342.0,88323.0,0.0396471]
[1766267108383,0.02540044,88341.0,88323.0,0.0396471]
[1766267108571,0.02540044,88340.0,88323.0,0.0396471]
[1766267108878,0.0113247,88342.0,88323.0,0.0396471]
[1766267109073,0.02540044,88341.0,88323.0,0.0396471]
[1766267109276,0.02540044,88340.0,88323.0,0.0396471]
[1766267109473,0.01149412,88346.0,88323.0,0.0396471]
[1766267109675,0.0113245,88344.0,88323.0,0.0396471]
[1766267109876,0.02540043,88343.0,88323.0,0.0396471]
[1766267110176,0.02540043,88342.0,88323.0,0.0396471]
[1766267110377,0.02540043,88341.0,88323.0,0.0396471]
[1766267110578,0.02540043,88340.0,88323.0,0.0396471]
[1766267110779,0.0113245,88344.0,88323.0,0.0396471]
[1766267110977,0.02540041,88343.0,88323.0,0.0396471]
[1766267111178,0.02540041,88342.0,88323.0,0.0396471]
[1766267111374,0.02540041,88341.0,88323.0,0.0396471]
[1766267111673,0.02540041,88340.0,88323.0,0.0396471]
[1766267111874,0.0113245,88344.0,88323.0,0.0396471]
[1766267112075,0.02540035,88343.0,88323.0,0.0396471]
[1766267112274,0.02540035,88342.0,88323.0,0.02832]
[1766267112478,0.02540035,88341.0,88323.0,0.02832]
[1766267112779,0.02540035,88340.0,88323.0,0.02832]
[1766267112978,0.0113245,88344.0,88323.0,0.02832]
[1766267113174,0.02540028,88343.0,88323.0,0.02832]
[1766267113370,0.02540028,88342.0,88323.0,0.02832]
[1766267113575,0.02540028,88341.0,88323.0,0.02832]
[1766267113776,0.02540028,88340.0,88323.0,0.02832]
[1766267114082,0.0113245,88344.0,88323.0,0.02832]
[1766267114281,0.0113247,88342.0,88323.0,0.02832]
[1766267114482,0.02540021,88341.0,88323.0,0.02832]
[1766267114682,0.02540021,88340.0,88323.0,0.02832]
[1766267114981,0.0113247,88342.0,88323.0,0.02832]
[1766267115182,0.02540015,88341.0,88323.0,0.02832]
[1766267115382,0.02540015,88340.0,88323.0,0.02832]
[1766267115584,0.0113247,88342.0,88323.0,0.02832]
[1766267115782,0.02540011,88341.0,88323.0,0.02832]
[1766267115982,0.02540011,88340.0,88323.0,0.02832]
[1766267116180,0.0113247,88342.0,88323.0,0.02832]
[1766267116380,0.02540009,88341.0,88323.0,0.02832]
[1766267116580,0.02540009,88340.0,88323.0,0.02832]
[1766267116780,0.22804461,88340.0,88323.0,0.02832]
[1766267117387,0.0113247,88342.0,88323.0,0.02832]
[1766267117686,0.02540003,88341.0,88323.0,0.02832]
[1766267117885,0.02540003,88340.0,88323.0,0.02832]
[1766267118086,0.0113247,88342.0,88323.0,0.02832]
[1766267118387,0.22804461,88340.0,88323.0,0.02832]
[1766267124683,0.22804461,88340.0,88323.0,0.02828]
[1766267124881,0.02540035,88339.0,88323.0,0.02828]
[1766267125090,0.22804461,88340.0,88323.0,0.02828]
[1766267125286,0.02540035,88339.0,88323.0,0.02828]
[1766267125490,0.22804461,88340.0,88323.0,0.02828]
[1766267125692,0.02539973,88339.0,88323.0,0.02828]
[1766267125990,0.22807309,88340.0,88323.0,0.02828]
[1766267126186,0.0113255,88337.0,88323.0,0.02828]
[1766267129583,0.0113249,88341.0,88323.0,0.02828]
[1766267129783,0.0113251,88339.0,88323.0,0.02828]
[1766267138916,0.02832,88342.0,88323.0,0.02828]
[1766267139118,0.02537453,88341.0,88323.0,0.02828]
[1766267139316,0.02537453,88340.0,88323.0,0.02828]
[1766267139512,0.02537453,88339.0,88323.0,0.02828]
[1766267139712,0.02832,88342.0,88323.0,0.02828]
[1766267139913,0.02537446,88341.0,88323.0,0.02828]
[1766267140114,0.02537446,88340.0,88323.0,0.02828]
[1766267140314,0.02537446,88339.0,88323.0,0.02828]
[1766267140509,0.0396447,88342.0,88323.0,0.02828]
[1766267140715,0.02537457,88341.0,88323.0,0.02828]
[1766267141015,0.02537457,88340.0,88323.0,0.02828]
[1766267141314,0.02537457,88339.0,88323.0,0.02828]
[1766267141519,0.0396447,88342.0,88323.0,0.02828]
[1766267141719,0.02537464,88341.0,88323.0,0.02828]
[1766267142018,0.02537464,88340.0,88323.0,0.02828]
[1766267142319,0.02537464,88339.0,88323.0,0.02828]
[1766267142521,0.0396447,88342.0,88323.0,0.02828]
[1766267142718,0.02537473,88341.0,88323.0,0.02828]
[1766267142916,0.02537473,88340.0,88323.0,0.02828]
[1766267143116,0.02537473,88339.0,88323.0,0.02828]
[1766267143320,0.0396447,88342.0,88323.0,0.02828]
[1766267143520,0.02537475,88341.0,88323.0,0.02828]
[1766267143721,0.02537475,88340.0,88323.0,0.02828]
[1766267143921,0.02537475,88339.0,88323.0,0.02828]
[1766267144121,0.0396447,88342.0,88323.0,0.02828]
[1766267144319,0.02537475,88341.0,88323.0,0.02828]
[1766267144519,0.02537475,88340.0,88323.0,0.02828]
[1766267144720,0.02537475,88339.0,88323.0,0.02828]